bitfinex/quotes_SOLUSD_20240717
["timestamp","ask_amount","ask_price","bid_price","bid_amount"]
[1721213499898,0.72484971,162.74,162.73,6.145]
[1721213500788,0.72484971,162.76,162.74,6.1446]
[1721213501207,0.72484971,162.76,162.75,6.1443]
[1721213502097,0.72484971,162.76,162.74,21.5062]
[1721213503110,15.17484971,162.76,162.74,21.5062]
[1721213503307,0.72484971,162.75,162.74,21.5062]
[1721213504818,0.72484971,162.76,162.74,21.5062]
[1721213505493,15.17484971,162.76,162.74,21.5062]
[1721213505805,0.72484971,162.75,162.74,21.5062]
[1721213506427,0.72484971,162.75,162.74,15.3616]
[1721213506719,0.72484971,162.75,162.74,21.5063]
[1721213507504,0.72484971,162.76,162.74,21.5063]
[1721213508217,50.94145883,163.35,162.78,6.1431]
[1721213508218,0.72484971,162.8,162.78,6.1431]
[1721213508531,0.72484971,162.81,162.8,6.1423]
[1721213509302,0.72484971,162.81,162.79,21.4994]
[1721213509915,15.17484971,162.81,162.79,15.3567]
[1721213510135,0.72484971,162.8,162.79,15.3567]
[1721213510320,14.45,162.81,162.79,21.4995]
[1721213510321,0.72484971,162.81,162.79,21.4995]
[1721213513498,0.72484971,162.81,162.79,15.3567]
[1721213513822,15.17484971,162.81,162.79,15.3567]
[1721213514035,0.72484971,162.81,162.79,15.3567]
[1721213515115,15.17484971,162.81,162.79,15.3567]
[1721213515510,0.72484971,162.81,162.79,21.4995]
[1721213515825,14.45,162.82,162.79,21.4995]
[1721213516441,14.45,162.82,162.79,15.3567]
[1721213516812,14.45,162.82,162.79,21.4994]
[1721213517013,20.5915,162.83,162.79,21.4994]
[1721213517232,14.45,162.83,162.79,15.3567]
[1721213517540,14.45,162.84,162.79,15.3567]
[1721213517742,14.45,162.86,162.82,6.1415]
[1721213518307,0.72484971,162.85,162.82,6.1415]
[1721213519631,0.72484971,162.85,162.83,6.1412]
[1721213519837,0.72484971,162.85,162.82,6.1416]
[1721213520035,20.72484971,162.85,162.82,6.1416]
[1721213520341,35.17484971,162.85,162.82,6.1416]
[1721213520541,41.31544971,162.85,162.81,15.3547]
[1721213520750,41.31544971,162.85,162.81,21.4967]
[1721213520751,0.72484971,162.84,162.81,21.4967]
[1721213521337,0.72484971,162.84,162.82,6.1416]
[1721213521728,0.72484971,162.89,162.83,15.3527]
[1721213522040,0.72484971,162.89,162.8,14.45]
[1721213522041,0.72484971,162.89,162.87,6.1397]
[1721213522539,0.72484971,162.89,162.87,6.1396]
[1721213522928,0.72484971,162.89,162.85,15.351]
[1721213523114,37.1708,162.94,162.85,15.351]
[1721213523115,14.45,162.87,162.85,15.351]
[1721213523316,0.72484971,162.86,162.85,15.351]
[1721213523715,0.72484971,162.86,162.84,6.1407]
[1721213523918,15.17484971,162.86,162.83,6.1413]
[1721213524223,0.72484971,162.85,162.83,6.1413]
[1721213525244,15.17484971,162.85,162.82,21.4954]
[1721213525418,0.72484971,162.84,162.83,6.1413]
[1721213525821,0.72484971,162.85,162.84,6.1409]
[1721213526139,0.72484971,162.86,162.85,6.1403]
[1721213526317,0.72484971,162.86,162.84,21.4928]
[1721213527032,0.72484971,162.86,162.84,15.3519]
[1721213527417,0.72484971,162.86,162.81,15.3549]
[1721213527621,15.17484971,162.85,162.82,6.1416]
[1721213527832,0.72484971,162.85,162.83,6.1413]
[1721213528030,20.72484971,162.85,162.83,6.1413]
[1721213528618,20.72484971,162.85,162.82,6.1416]
[1721213528848,35.17484971,162.85,162.82,6.1416]
[1721213529228,35.17484971,162.85,162.81,15.3549]
[1721213529430,20.0,162.85,162.84,6.1409]
[1721213529751,0.72484971,162.87,162.84,6.1408]
[1721213529934,20.0,162.86,162.84,6.1408]
[1721213530141,0.72484971,162.85,162.83,15.353]
[1721213530449,0.72484971,162.85,162.83,21.494]
[1721213531919,14.45,162.88,162.83,15.353]
[1721213532142,35.17484971,162.87,162.83,15.353]
[1721213532443,34.45,162.87,162.85,6.1405]
[1721213532675,20.0,162.87,162.85,6.1405]
[1721213532943,0.72484971,162.87,162.86,6.1402]
[1721213533148,15.17484971,162.88,162.86,6.1402]
[1721213533332,15.17484971,162.88,162.85,6.1405]
[1721213533946,0.72484971,162.88,162.85,6.1405]
[1721213534317,0.72484971,162.89,162.85,6.1405]
[1721213534522,0.72484971,162.89,162.86,6.1402]
[1721213534824,6.86394971,162.89,162.84,21.81866103]
[1721213535039,6.86394971,162.89,162.84,20.5906]
[1721213535443,6.86394971,162.89,162.85,6.1405]
[1721213536128,14.45,162.87,162.83,15.353]
[1721213536358,0.72484971,162.86,162.83,21.4941]
[1721213536853,0.72484971,162.86,162.84,6.1409]
[1721213537053,20.5891,162.89,162.85,6.1406]
[1721213537233,0.72484971,162.88,162.85,6.1406]
[1721213538134,0.72484971,162.88,162.86,6.1401]
[1721213539228,14.45,162.89,162.85,15.3511]
[1721213539229,0.72484971,162.89,162.87,6.1398]
[1721213539465,20.72484971,162.89,162.87,6.1398]
[1721213539840,35.17484971,162.89,162.85,15.3511]
[1721213540258,14.45,162.88,162.85,21.4916]
[1721213540566,0.72484971,162.88,162.85,21.4916]
[1721213540752,0.72484971,162.88,162.86,6.1401]
[1721213541163,20.0,162.89,162.87,6.1398]
[1721213541344,20.72484971,162.89,162.87,6.1398]
[1721213541765,35.17484971,162.89,162.86,6.1401]
[1721213543168,20.72484971,162.89,162.86,6.1401]
[1721213544774,26.86394971,162.89,162.85,21.4916]
[1721213545067,14.45,162.88,162.85,21.4916]
[1721213545474,41.31394971,162.89,162.85,21.4916]
[1721213546641,20.5895,162.88,162.85,15.3511]
[1721213546842,15.17484971,162.87,162.85,15.3511]
[1721213547744,15.17484971,162.88,162.85,15.3511]
[1721213547944,0.72484971,162.88,162.85,15.3511]
[1721213548345,20.0,162.89,162.87,6.1398]
[1721213548545,20.72484971,162.89,162.87,6.1398]
[1721213551186,20.72484971,162.89,162.86,6.1401]
[1721213551345,26.86394971,162.89,162.85,21.4915]
[1721213551546,20.72484971,162.89,162.86,6.1402]
[1721213552178,35.17484971,162.89,162.86,6.1402]
[1721213553682,41.31404971,162.89,162.85,21.4916]
[1721213554172,14.45,162.88,162.85,21.4916]
[1721213554480,0.72484971,162.87,162.85,15.3511]
[1721213555584,0.72484971,162.87,162.78,15.8941]
[1721213555752,14.45,162.85,162.82,6.1414]
[1721213556077,15.17484971,162.84,162.82,6.1414]
[1721213556583,15.17484971,162.84,162.82,21.4953]
[1721213556750,0.72484971,162.86,162.82,21.4953]
[1721213556955,15.17484971,162.85,162.82,21.4953]
[1721213557469,15.17484971,162.85,162.83,6.1412]
[1721213557875,0.72484971,162.84,162.83,6.1412]
[1721213559273,0.72484971,162.85,162.83,6.1412]
[1721213560059,15.17484971,162.85,162.83,6.1412]
[1721213560275,0.72484971,162.84,162.83,6.1412]
[1721213560586,0.72484971,162.85,162.83,6.1412]
[1721213560774,0.72484971,162.86,162.84,6.1409]
[1721213560962,20.0,162.86,162.85,6.1406]
[1721213562685,20.0,162.86,162.84,21.4929]
[1721213562981,20.72484971,162.87,162.84,21.4929]
[1721213563182,20.72484971,162.87,162.84,35.9429]
[1721213564180,20.0,162.87,162.85,6.1405]
[1721213564388,0.72484971,162.89,162.87,6.1398]
[1721213564558,0.72484971,162.9,162.87,6.1398]
[1721213566384,0.72484971,162.91,162.88,6.1394]
[1721213566582,20.72484971,162.91,162.88,6.1394]
[1721213568484,26.86314971,162.91,162.87,21.81750907]
[1721213569882,6.1388,162.9,162.86,35.9403]
[1721213570198,21.31394971,162.89,162.85,6.1405]
[1721213570574,15.17484971,162.89,162.86,6.1402]
[1721213572290,21.31404971,162.89,162.85,21.4919]
[1721213572492,0.72484971,162.88,162.86,6.1402]
[1721213573069,0.72484971,162.88,162.87,6.1398]
[1721213574876,0.72484971,162.88,162.86,6.1401]
[1721213575199,0.72484971,162.88,162.87,6.1398]
[1721213575883,0.72484971,162.88,162.85,21.4916]
[1721213575884,15.17484971,162.88,162.85,21.4916]
[1721213576091,15.17484971,162.87,162.85,21.4918]
[1721213577093,0.72484971,162.86,162.85,21.4918]
[1721213577595,0.72484971,162.87,162.85,21.4918]
[1721213578166,15.17484971,162.87,162.85,21.4918]
[1721213578691,0.72484971,162.86,162.85,21.4918]
[1721213581904,0.72484971,162.89,162.85,15.3513]
[1721213582412,20.72484971,162.89,162.85,15.3513]
[1721213582571,20.72484971,162.89,162.87,6.1397]
[1721213583484,0.72484971,162.88,162.87,6.1397]
[1721213584105,0.72484971,162.88,162.86,6.1401]
[1721213584280,20.72484971,162.88,162.86,6.1401]
[1721213585221,35.17484971,162.88,162.86,6.1401]
[1721213585504,20.0,162.88,162.86,6.1401]
[1721213585708,35.17484971,162.88,162.85,15.3513]
[1721213585900,41.31444971,162.88,162.85,15.3513]
[1721213586501,35.17484971,162.88,162.85,21.4917]
[1721213586700,20.72484971,162.88,162.86,6.1402]
[1721213586882,35.17484971,162.89,162.86,6.1402]
[1721213587208,20.72484971,162.89,162.86,6.1402]
[1721213588304,20.72484971,162.89,162.87,6.1398]
[1721213588504,20.72484971,162.9,162.87,6.1398]
[1721213589684,20.0,162.9,162.88,6.1394]
[1721213589981,0.72484971,162.95,162.89,14.45]
[1721213590293,0.72484971,162.95,162.92,14.45]
[1721213590695,0.72484971,162.95,162.92,20.5878]
[1721213590903,0.72484971,162.95,162.92,35.9321]
[1721213591083,0.72484971,162.96,162.92,35.9321]
[1721213591422,20.0,162.96,162.92,29.7943]
[1721213591705,0.72484971,162.97,162.94,6.1371]
[1721213592223,0.72484971,162.98,162.94,14.45]
[1721213592384,0.72484971,162.98,162.96,6.1364]
[1721213592584,0.72484971,162.98,162.95,6.1367]
[1721213593102,14.45,162.99,162.96,6.1364]
[1721213593103,0.72484971,162.99,162.96,6.1364]
[1721213593486,0.72484971,162.99,162.96,20.5864]
[1721213593687,0.72484971,162.99,162.96,6.1364]
[1721213594491,0.72484971,162.99,162.95,6.1367]
[1721213595407,15.17484971,162.99,162.95,6.1367]
[1721213595909,0.72484971,162.99,162.95,6.1367]
[1721213596299,28.4419,163.01,162.97,6.1359]
[1721213596485,20.0,163.0,162.97,6.1359]
[1721213597085,26.135,163.0,162.96,29.7908]
[1721213597387,23.03214971,163.01,162.96,29.7908]
[1721213597388,0.72484971,163.01,162.97,21.81275283]
[1721213597598,0.72484971,163.01,162.98,20.5856]
[1721213598122,0.72484971,163.05,163.02,6.1341]
[1721213598288,0.72484971,163.05,162.99,1.22693701]
[1721213598289,0.72484971,163.05,163.01,20.5844]
[1721213598491,6.85794971,163.05,163.01,20.5844]
[1721213600093,6.85794971,163.05,163.01,21.81120121]
[1721213601194,27.6201,163.06,163.02,7.36086357]
[1721213601712,28.34494971,163.06,163.02,21.81086357]
[1721213602189,28.34494971,163.06,163.03,1.22664061]
[1721213602512,27.6201,163.06,163.03,1.22664061]
[1721213603097,6.1328,163.06,163.03,1.22664061]
[1721213603811,6.1328,163.06,163.02,20.5841]
[1721213604215,0.72484971,163.07,163.03,21.81034145]
[1721213604523,20.5822,163.08,163.03,20.5837]
[1721213604821,6.85714971,163.07,163.03,20.5837]
[1721213605023,6.85714971,163.07,163.03,21.81033921]
[1721213605228,6.1323,163.07,163.03,21.81033921]
[1721213606613,6.1323,163.07,163.03,20.5837]
[1721213606997,6.1323,163.07,163.03,21.81024984]
[1721213607292,6.85754971,163.06,163.02,21.4691]
[1721213607997,0.72484971,163.06,163.03,6.1337]
[1721213609421,14.45,163.05,163.02,15.335]
[1721213609631,0.72484971,163.04,163.02,15.335]
[1721213610018,0.72484971,163.04,163.02,21.4692]
[1721213611012,0.72484971,163.04,163.02,15.335]
[1721213611527,0.72484971,163.05,163.02,15.335]
[1721213611823,0.72484971,163.05,163.02,21.4689]
[1721213613826,0.72484971,163.05,163.03,6.1338]
[1721213615726,0.72484971,163.04,162.99,15.3381]
[1721213615932,14.45,163.03,163.0,6.1346]
[1721213616097,0.72484971,163.02,163.0,6.1346]
[1721213616528,15.17484971,163.04,162.99,16.56504247]
[1721213616837,15.17484971,163.04,163.02,6.1342]
[1721213616998,14.45,163.03,163.01,15.336]
[1721213617311,0.72484971,163.02,163.01,15.336]
[1721213618628,15.17484971,163.02,162.98,21.474]
[1721213618823,15.17484971,163.01,162.98,21.474]
[1721213619039,0.72484971,163.01,162.98,21.474]
[1721213619342,0.72484971,163.01,162.99,6.1352]
[1721213619838,0.72484971,163.01,162.98,21.4743]
[1721213620541,0.72484971,163.01,162.99,6.1353]
[1721213621442,0.72484971,163.02,162.99,6.1353]
[1721213621818,15.17484971,163.02,162.99,6.1353]
[1721213622123,0.72484971,163.01,162.99,6.1353]
[1721213622844,0.72484971,163.01,162.98,15.3387]
[1721213622845,15.17484971,163.01,162.98,21.4744]
[1721213623047,14.45,162.99,162.95,6.1367]
[1721213623250,14.45,162.99,162.91,15.954]
[1721213623251,0.72484971,162.98,162.93,14.45]
[1721213623716,0.72484971,162.98,162.95,6.1367]
[1721213624044,15.17484971,162.98,162.95,6.1367]
[1721213624345,14.45,162.98,162.95,6.1367]
[1721213624642,14.45,162.97,162.95,6.1367]
[1721213624814,15.17484971,162.98,162.95,6.1367]
[1721213625520,0.72484971,162.98,162.95,6.1367]
[1721213625939,15.17484971,162.98,162.95,6.1367]
[1721213626241,21.31054971,162.98,162.94,21.4794]
[1721213626450,14.45,162.97,162.94,21.4794]
[1721213626618,0.72484971,162.96,162.94,21.4794]
[1721213626814,0.72484971,162.97,162.94,21.4794]
[1721213627010,6.1364,162.96,162.92,6.1376]
[1721213627330,6.1364,162.96,162.89,1.22741915]
[1721213627331,15.17484971,162.97,162.93,6.1375]
[1721213627844,15.17484971,162.97,162.94,6.1371]
[1721213628358,14.45,162.95,162.93,15.3434]
[1721213628644,0.72484971,162.94,162.93,15.3434]
[1721213628821,14.45,162.95,162.93,15.3434]
[1721213629140,14.45,162.95,162.93,21.4809]
[1721213629639,15.17484971,162.94,162.92,6.1379]
[1721213630268,15.17484971,162.95,162.93,6.1376]
[1721213630416,0.72484971,162.96,162.94,6.1372]
[1721213630817,21.6971,162.98,162.93,1.2274299]
[1721213631239,0.72484971,162.99,162.94,14.45]
[1721213631456,0.72484971,162.99,162.95,1.22725891]
[1721213631614,0.72484971,163.0,162.96,1.22719038]
[1721213631818,0.72484971,163.0,162.97,6.1359]
[1721213632032,15.17484971,163.0,162.97,6.1359]
[1721213632418,0.72484971,163.0,162.98,6.1356]
[1721213632934,0.72484971,163.01,162.98,6.1356]
[1721213633150,0.72484971,163.01,162.98,15.3387]
[1721213633340,37.1377,163.02,162.98,15.3387]
[1721213633853,0.72484971,163.01,162.98,21.4743]
[1721213634238,15.17484971,163.01,162.98,21.4743]
[1721213634559,0.72484971,163.01,162.98,21.4743]
[1721213635231,0.72484971,163.01,162.99,6.1352]
[1721213635654,0.72484971,163.01,162.98,21.4743]
[1721213636236,0.72484971,163.01,162.98,15.3387]
[1721213636839,0.72484971,163.01,162.98,21.4743]
[1721213640342,43.2719,163.02,162.98,21.4743]
[1721213640343,37.1377,163.02,162.98,15.3387]
[1721213640554,22.6877,163.02,162.98,15.3387]
[1721213640938,22.6877,163.02,162.99,6.1352]
[1721213641159,23.41254971,163.02,162.99,6.1352]
[1721213641648,15.17484971,163.01,162.98,15.3387]
[1721213641849,21.30934971,163.01,162.98,15.3387]
[1721213642150,15.17484971,163.01,162.98,15.3387]
[1721213642353,14.45,162.99,162.96,6.1364]
[1721213642554,15.17484971,162.99,162.96,6.1364]
[1721213642930,0.72484971,163.01,162.96,1.22721695]
[1721213643137,6.1331,163.05,163.0,6.1349]
[1721213643364,35.17484971,163.04,163.0,6.1349]
[1721213643538,20.72484971,163.04,163.0,6.1349]
[1721213643841,20.72484971,163.04,163.0,20.5849]
[1721213644041,26.85834971,163.04,163.0,20.5849]
[1721213644645,20.72484971,163.04,163.0,21.81179459]
[1721213644829,26.85834971,163.04,163.0,6.1349]
[1721213645032,6.1338,163.03,162.99,21.4729]
[1721213645355,6.1346,163.01,162.97,20.5858]
[1721213645557,6.85944971,163.01,162.97,6.1358]
[1721213645934,0.72484971,163.01,162.97,6.1358]
[1721213646153,0.72484971,163.01,162.96,15.3405]
[1721213646349,0.72484971,163.01,162.97,20.5857]
[1721213646350,6.85944971,163.01,162.97,20.5857]
[1721213646952,0.72484971,163.01,162.97,20.5857]
[1721213647256,0.72484971,163.01,162.98,6.1357]
[1721213647431,6.85954971,163.01,162.96,29.7905]
[1721213648359,6.85954971,163.01,162.97,6.136]
[1721213649766,21.30954971,163.01,162.97,6.136]
[1721213650135,15.17484971,163.01,162.98,6.1356]
[1721213650660,21.30944971,163.01,162.97,6.1359]
[1721213651054,15.17484971,163.01,162.97,6.1359]
[1721213651260,0.72484971,163.01,162.98,6.1356]
[1721213653040,15.17484971,163.01,162.97,6.1359]
[1721213653358,14.45,163.0,162.97,6.1359]
[1721213653536,0.72484971,162.99,162.97,6.1359]
[1721213654263,15.17484971,162.99,162.96,21.4769]
[1721213654559,0.72484971,162.98,162.96,15.3405]
[1721213655456,15.17484971,162.98,162.96,15.3405]
[1721213656151,6.86064971,162.98,162.94,6.1371]
[1721213656363,14.45,162.97,162.94,6.1371]
[1721213656572,0.72484971,162.96,162.94,6.1371]
[1721213656886,0.72484971,162.96,162.95,6.1368]
[1721213657574,14.45,162.96,162.86,22.84530596]
[1721213657785,20.72484971,162.97,162.87,14.45]
[1721213657786,14.45,162.93,162.87,14.45]
[1721213657956,0.72484971,162.92,162.9,6.1384]
[1721213658358,14.45,162.95,162.91,15.3453]
[1721213658562,0.72484971,162.95,162.91,15.3453]
[1721213658766,0.72484971,162.95,162.92,6.1379]
[1721213658971,15.17484971,162.95,162.91,15.3453]
[1721213659278,0.72484971,162.95,162.93,6.1374]
[1721213659496,15.17484971,162.96,162.93,6.1374]
[1721213659782,0.72484971,162.96,162.93,6.1374]
[1721213659982,20.72484971,162.96,162.93,6.1374]
[1721213660852,41.31134971,162.96,162.91,15.3453]
[1721213661057,20.72484971,162.96,162.92,6.1379]
[1721213661257,20.72484971,162.96,162.93,6.1374]
[1721213661475,20.72484971,162.96,162.92,6.1378]
[1721213661667,41.31134971,162.96,162.92,6.1378]
[1721213662190,41.31134971,162.96,162.91,21.4835]
[1721213662484,41.31134971,162.96,162.9,6.1386]
[1721213662485,20.5873,162.94,162.9,6.1386]
[1721213663668,0.72484971,162.93,162.9,6.1386]
[1721213664265,15.17484971,162.93,162.9,6.1386]
[1721213664795,0.72484971,162.92,162.9,6.1386]
[1721213664998,0.72484971,162.92,162.89,6.139]
[1721213665300,0.72484971,162.92,162.88,15.3481]
[1721213665301,21.31284971,162.92,162.88,15.3481]
[1721213665472,21.31284971,162.92,162.88,21.4873]
[1721213665864,0.72484971,162.91,162.88,21.4873]
[1721213666694,14.45,162.9,162.88,15.3481]
[1721213666868,15.17484971,162.9,162.88,15.3481]
[1721213667262,0.72484971,162.9,162.88,15.3481]
[1721213667462,6.86314971,162.91,162.88,15.3481]
[1721213667696,21.31314971,162.91,162.88,15.3481]
[1721213667867,0.72484971,162.9,162.88,15.3481]
[1721213668459,0.72484971,162.91,162.88,21.4875]
[1721213668663,21.31294971,162.92,162.88,21.4875]
[1721213668990,15.17484971,162.92,162.88,21.4875]
[1721213669961,21.8393,162.94,162.89,1.22777432]
[1721213670297,21.8393,162.94,162.91,6.1383]
[1721213670501,22.56414971,162.94,162.91,6.1383]
[1721213670799,43.15144971,162.94,162.9,21.4851]
[1721213670969,43.15144971,162.94,162.9,22.71269996]
[1721213671390,43.15144971,162.94,162.89,6.139]
[1721213671391,20.5876,162.93,162.89,6.139]
[1721213671587,6.86284971,162.92,162.88,6.1394]
[1721213671793,21.31244971,162.93,162.89,6.1391]
[1721213672182,6.86284971,162.92,162.88,6.1394]
[1721213672383,21.31284971,162.92,162.88,6.1394]
[1721213672982,6.138,162.92,162.89,1.22771296]
[1721213673172,6.86284971,162.92,162.88,6.1394]
[1721213673906,21.31284971,162.92,162.88,6.1394]
[1721213674598,21.31284971,162.92,162.87,15.3489]
[1721213674599,6.1384,162.91,162.87,21.4886]
[1721213674898,0.72484971,162.9,162.87,21.4886]
[1721213675074,20.5884,162.91,162.87,21.4886]
[1721213675075,15.17484971,162.91,162.87,21.4886]
[1721213675792,15.17484971,162.91,162.88,6.1394]
[1721213676302,15.17484971,162.91,162.87,22.71641036]
[1721213677199,15.17484971,162.91,162.88,6.1394]
[1721213678000,15.17484971,162.92,162.89,6.139]
[1721213678297,21.8393,162.94,162.9,1.22773489]
[1721213678469,21.8393,162.94,162.91,16.57287024]
[1721213678679,0.72484971,162.95,162.92,6.1376]
[1721213678895,15.17484971,162.95,162.92,6.1376]
[1721213679094,21.31174971,162.95,162.91,22.71107024]
[1721213679295,20.5869,162.95,162.91,22.71107024]
[1721213679503,14.45,162.95,162.91,22.71107024]
[1721213680007,14.45,162.95,162.92,6.1378]
[1721213680505,20.5866,162.96,162.92,6.1378]
[1721213680709,14.45,162.95,162.92,6.1378]
[1721213681080,20.5866,162.96,162.92,7.36525214]
[1721213682515,21.31174971,162.95,162.91,21.4836]
[1721213682837,20.5869,162.95,162.91,21.4836]
[1721213683110,14.45,162.95,162.92,6.1379]
[1721213683291,0.72484971,162.95,162.92,6.1379]
[1721213683492,0.72484971,162.95,162.91,21.4835]
[1721213684095,15.17484971,162.95,162.91,21.4835]
[1721213684810,0.72484971,162.95,162.91,21.4835]
[1721213685112,15.17484971,162.95,162.91,21.4835]
[1721213685311,21.31164971,162.95,162.91,21.4835]
[1721213685493,14.45,162.94,162.91,21.4835]
[1721213685697,15.17484971,162.93,162.88,15.3483]
[1721213686021,15.17484971,162.93,162.9,6.1386]
[1721213686203,15.17484971,162.93,162.88,15.3483]
[1721213686506,14.45,162.93,162.88,15.3483]
[1721213687221,14.45,162.94,162.91,6.1383]
[1721213687511,21.31204971,162.94,162.9,6.1385]
[1721213687837,15.17484971,162.94,162.91,6.1382]
[1721213688007,15.17484971,162.94,162.92,6.1379]
[1721213688400,14.45,162.94,162.92,6.1379]
[1721213688892,14.45,162.94,162.91,6.1382]
[1721213689718,14.45,162.92,162.9,15.3465]
[1721213689911,15.17484971,162.92,162.9,15.3465]
[1721213690295,21.31294971,162.92,162.88,6.1393]
[1721213690510,14.45,162.91,162.88,6.1393]
[1721213690904,14.45,162.91,162.89,6.139]
[1721213691508,14.45,162.91,162.9,6.1387]
[1721213691720,14.45,162.93,162.87,14.45]
[1721213691902,14.45,162.93,162.88,1.22768179]
[1721213692107,14.45,162.92,162.88,1.22768179]
[1721213692320,14.45,162.92,162.91,6.1381]
[1721213692823,14.45,162.92,162.9,6.1385]
[1721213693406,14.45,162.93,162.9,6.1385]
[1721213693727,0.72484971,163.03,162.94,10.0]
[1721213693926,14.45,163.03,162.99,15.3383]
[1721213694131,15.17484971,163.05,163.03,6.1338]
[1721213694503,15.17484971,163.05,163.02,15.3355]
[1721213694814,14.45,163.04,163.02,21.4696]
[1721213695415,14.45,163.04,163.02,15.3355]
[1721213695718,14.45,163.04,163.02,21.4696]
[1721213696229,0.72484971,163.05,163.02,21.4696]
[1721213696606,0.72484971,163.04,162.99,15.338]
[1721213697225,0.72484971,163.04,163.0,6.1349]
[1721213697435,6.85824971,163.04,163.0,6.1349]
[1721213698123,6.85824971,163.04,162.99,21.4732]
[1721213699011,0.72484971,163.04,162.97,6.136]
[1721213699220,6.1344,163.02,162.97,6.136]
[1721213699411,6.85944971,163.01,162.96,21.4775]
[1721213700019,0.72484971,163.01,162.96,15.3411]
[1721213700413,6.135,163.0,162.96,15.3411]
[1721213700612,6.86044971,162.99,162.94,6.1371]
[1721213700924,6.86064971,162.98,162.94,6.1371]
[1721213701108,6.86064971,162.98,162.93,21.4813]
[1721213701436,0.72484971,162.98,162.94,6.1371]
[1721213702415,0.72484971,162.98,162.95,6.1368]
[1721213703336,0.72484971,162.98,162.94,6.1371]
[1721213704844,0.72484971,162.98,162.95,6.1368]
[1721213705223,6.86024971,162.99,162.95,6.1368]
[1721213705537,0.72484971,162.98,162.95,6.1368]
[1721213705835,0.72484971,162.98,162.93,15.3438]
[1721213705836,6.86064971,162.98,162.93,15.3438]
[1721213706320,6.1362,162.97,162.93,15.3438]
[1721213706525,0.72484971,162.96,162.93,15.3438]
[1721213707026,0.72484971,162.96,162.93,21.4811]
[1721213707549,0.72484971,162.97,162.93,21.4811]
[1721213707844,6.86094971,162.97,162.93,21.4811]
[1721213708314,0.72484971,162.97,162.93,21.4811]
[1721213708740,0.72484971,162.97,162.94,6.1372]
[1721213709535,0.72484971,162.97,162.93,15.3438]
[1721213709714,1.06484971,162.99,162.93,15.3438]
[1721213709915,1.06484971,162.99,162.95,6.1366]
[1721213710122,7.20024971,162.99,162.95,6.1366]
[1721213710815,22.6936,163.0,162.94,1.22735172]
[1721213711144,22.6936,163.0,162.97,21.4759]
[1721213711332,0.72484971,162.99,162.97,15.3399]
[1721213712230,0.72484971,162.99,162.96,6.1363]
[1721213712731,0.72484971,162.99,162.94,15.3424]
[1721213712939,0.72484971,162.98,162.94,15.3424]
[1721213713138,6.86054971,162.98,162.94,21.4793]
[1721213714140,0.72484971,162.97,162.94,21.4793]
[1721213714936,6.1365,162.96,162.92,6.1376]
[1721213715135,0.72484971,162.95,162.92,6.1376]
[1721213715340,6.3061,162.97,162.93,6.1375]
[1721213715514,0.72484971,162.96,162.93,6.1375]
[1721213716943,6.86044971,162.99,162.92,1.22744307]
[1721213717146,6.86044971,162.99,162.94,6.137]
[1721213717147,0.72484971,162.98,162.94,6.137]
[1721213717742,0.72484971,162.98,162.95,6.1368]
[1721213717946,0.72484971,162.98,162.94,6.137]
[1721213718121,0.72484971,162.98,162.93,15.3435]
[1721213718313,6.1362,162.97,162.93,21.481]
[1721213718926,0.72484971,162.96,162.93,21.481]
[1721213719542,6.86134971,162.96,162.93,15.3435]
[1721213719753,6.1365,162.96,162.93,15.3435]
[1721213720047,0.72484971,162.95,162.91,6.1382]
[1721213720358,0.72484971,162.95,162.92,6.1379]
[1721213720644,0.72484971,162.95,162.93,6.1375]
[1721213720840,15.20484971,162.96,162.93,6.1375]
[1721213721049,15.20484971,162.96,162.94,6.1371]
[1721213721253,0.72484971,162.96,162.94,6.1371]
[1721213722117,0.72484971,162.96,162.93,6.1374]
[1721213724556,15.20484971,162.96,162.93,6.1374]
[1721213726731,14.48,162.95,162.91,6.138]
[1721213726936,15.20484971,162.94,162.91,6.138]
[1721213727139,14.48,162.93,162.9,6.1386]